bitfinex/quotes_ETHUSD_20240821
["timestamp","ask_amount","ask_price","bid_price","bid_amount"]
[1724233427930,3.0,2582.1,2581.8,0.21451721]
[1724233428169,7.5052,2582.2,2581.8,0.21451721]
[1724233428170,0.42390833,2582.0,2581.8,0.21451721]
[1724233428473,0.42390833,2581.9,2581.8,2.3622]
[1724233428692,0.42390833,2581.9,2581.8,2.70026617]
[1724233428901,0.42390833,2581.9,2581.8,2.91478338]
[1724233429454,0.42390833,2581.9,2581.8,0.55258338]
[1724233431006,1.688,2582.2,2581.8,0.55258338]
[1724233431305,0.4239085,2582.1,2581.6,2.9546]
[1724233431456,0.42392094,2582.0,2581.6,2.9546]
[1724233431651,3.99,2581.8,2581.7,0.21451721]
[1724233431859,2.11192094,2581.8,2581.7,0.21451721]
[1724233432988,2.11192094,2581.8,2581.6,0.7]
[1724233433185,0.42392094,2581.7,2581.6,0.7]
[1724233435185,0.42402763,2581.7,2581.6,0.7]
[1724233437200,0.42402763,2581.7,2581.3,0.7]
[1724233437493,0.42402763,2581.6,2581.3,1.01924]
[1724233437698,0.42402763,2581.5,2581.3,1.01924]
[1724233437900,0.42402763,2581.4,2581.3,1.01924]
[1724233438097,0.42402763,2581.4,2581.3,1.56924]
[1724233440032,0.42402763,2581.4,2581.3,0.7]
[1724233441528,0.42398075,2581.4,2581.3,0.7]
[1724233441826,1.688,2581.6,2581.3,0.7]
[1724233442132,1.688,2581.4,2581.0,8.11]
[1724233442289,0.42398081,2581.3,2581.0,0.7]
[1724233442482,0.42398081,2581.2,2581.0,0.7]
[1724233442686,4.0954,2581.4,2581.0,0.7]
[1724233442687,0.42398081,2581.1,2581.0,0.7]
[1724233445408,0.42395147,2581.1,2581.0,0.7]
[1724233445964,0.42395147,2581.1,2580.7,0.7]
[1724233445965,2.3428,2581.0,2580.7,0.7]
[1724233446260,0.42395147,2580.9,2580.7,0.7]
[1724233446461,0.42395147,2580.8,2580.7,0.99589]
[1724233446821,0.42395147,2580.8,2580.7,1.21103427]
[1724233447362,2.3428,2581.2,2580.7,1.21103427]
[1724233447575,0.42392357,2581.1,2580.7,1.21103427]
[1724233447715,0.42392357,2581.0,2580.7,1.21103427]
[1724233447920,0.42392357,2580.9,2580.8,2.3089]
[1724233448119,2.3425,2581.7,2581.2,0.7]
[1724233448430,0.42398491,2581.6,2581.3,2.52404427]
[1724233448633,0.42398491,2581.5,2581.3,2.52404427]
[1724233448857,0.42398491,2581.4,2581.3,2.8464487]
[1724233449033,0.42398491,2581.4,2581.3,2.52404427]
[1724233449947,0.42398491,2581.4,2581.3,3.07404427]
[1724233450129,1.688,2582.0,2581.6,0.7]
[1724233450336,0.42401195,2581.9,2581.6,0.7]
[1724233450517,0.42401195,2581.8,2581.6,0.7]
[1724233450720,0.42401195,2581.7,2581.6,0.7]
[1724233451623,0.42401195,2581.7,2581.6,3.1566]
[1724233451818,0.42401195,2581.7,2581.6,4.02226]
[1724233453347,0.42401195,2581.7,2581.6,1.56566]
[1724233456965,1.688,2582.0,2581.6,1.56566]
[1724233457165,0.4240279,2581.9,2581.6,1.56566]
[1724233457351,0.4240279,2581.8,2581.6,1.56566]
[1724233457536,0.4240279,2581.7,2581.6,1.56566]
[1724233457739,2.1120279,2582.0,2581.6,1.56566]
[1724233458069,0.4240279,2581.9,2581.6,1.56566]
[1724233458217,0.4240279,2581.8,2581.6,1.56566]
[1724233458558,0.4240279,2581.7,2581.6,1.56566]
[1724233459171,0.4240279,2581.9,2581.6,1.56566]
[1724233459371,0.4240279,2581.8,2581.6,1.56566]
[1724233459574,0.4240279,2581.7,2581.6,1.56566]
[1724233460277,1.688,2582.0,2581.6,1.56566]
[1724233460278,0.4240279,2581.9,2581.6,1.56566]
[1724233460455,0.4240279,2581.8,2581.6,1.56566]
[1724233460630,0.4240279,2581.7,2581.6,1.56566]
[1724233460830,0.4240279,2581.9,2581.6,1.56566]
[1724233461054,1.688,2582.0,2581.6,1.56566]
[1724233461256,0.42409961,2581.9,2581.6,1.56566]
[1724233461458,0.42409961,2581.8,2581.6,1.56566]
[1724233461637,0.42409961,2581.7,2581.6,1.56566]
[1724233464157,0.42409961,2581.7,2581.6,1.01566]
[1724233464330,0.42409961,2581.7,2581.6,0.7]
[1724233465176,1.688,2582.0,2581.6,0.7]
[1724233465384,0.42403645,2581.9,2581.6,0.7]
[1724233465842,0.42403645,2581.8,2581.6,0.7]
[1724233466046,0.42403645,2581.7,2581.6,0.7]
[1724233466367,0.42406026,2581.9,2581.6,0.7]
[1724233466543,0.42406026,2581.8,2581.6,0.7]
[1724233466742,0.42406026,2581.7,2581.6,0.7]
[1724233467671,0.42406026,2581.9,2581.6,0.7]
[1724233469176,1.688,2582.0,2581.6,0.7]
[1724233469379,0.42404387,2581.9,2581.6,0.7]
[1724233472199,0.42404387,2581.9,2581.6,3.1141]
[1724233472357,0.42404387,2581.8,2581.7,0.86141]
[1724233473244,0.4241385,2581.8,2581.7,0.86141]
[1724233473444,0.4241385,2582.1,2581.7,0.86141]
[1724233473685,0.4241385,2582.0,2581.7,0.86141]
[1724233473897,0.4241385,2581.9,2581.8,0.397551]
[1724233475051,0.4241385,2582.1,2581.8,0.397551]
[1724233475166,0.4241385,2582.0,2581.8,0.397551]
[1724233475366,0.4241385,2581.9,2581.8,0.397551]
[1724233475563,0.4241385,2582.1,2581.8,0.397551]
[1724233475801,0.4241385,2582.0,2581.8,0.397551]
[1724233476008,0.4241385,2581.9,2581.8,0.397551]
[1724233476267,0.4241385,2582.1,2581.8,0.397551]
[1724233476890,0.4241385,2582.1,2581.9,0.2143082]
[1724233477095,0.4241385,2582.1,2581.8,0.397551]
[1724233477309,0.4241385,2582.0,2581.8,0.397551]
[1724233477506,1.688,2582.2,2581.9,0.2143082]
[1724233477821,0.42439679,2582.1,2581.8,0.397551]
[1724233477978,2.11239679,2582.0,2581.8,0.397551]
[1724233478182,0.42439679,2581.9,2581.7,0.55]
[1724233478515,0.42439679,2581.8,2581.7,0.55]
[1724233479117,0.42439679,2581.8,2581.6,0.7]
[1724233479118,2.11239679,2581.8,2581.6,0.7]
[1724233479420,0.42439679,2581.7,2581.6,0.7]
[1724233480300,0.42439679,2581.7,2581.3,0.7]
[1724233480461,0.42439679,2581.6,2581.3,1.75403]
[1724233480669,0.42439679,2581.5,2581.3,1.75403]
[1724233480865,1.688,2581.8,2581.3,1.75403]
[1724233481117,1.688,2581.8,2581.4,0.916403]
[1724233481118,0.42436752,2581.7,2581.4,0.916403]
[1724233481270,1.688,2581.8,2581.4,0.916403]
[1724233481271,0.42436752,2581.6,2581.4,0.916403]
[1724233481472,0.4243695,2581.5,2581.4,0.916403]
[1724233481995,1.688,2581.8,2581.4,0.916403]
[1724233482202,0.42435584,2581.7,2581.4,0.916403]
[1724233482384,0.42435584,2581.6,2581.4,0.916403]
[1724233482711,0.42435584,2581.5,2581.4,0.916403]
[1724233483082,0.42435584,2581.7,2581.4,0.916403]
[1724233483283,0.42435584,2581.6,2581.4,0.916403]
[1724233483494,1.688,2581.8,2581.5,0.4115303]
[1724233483698,0.42440108,2581.7,2581.4,0.916403]
[1724233483871,0.42440108,2581.6,2581.4,0.916403]
[1724233484203,0.42440108,2581.5,2581.4,0.916403]
[1724233484807,1.688,2581.8,2581.4,0.916403]
[1724233485149,2.406,2581.9,2581.4,0.916403]
[1724233485150,0.42432755,2581.7,2581.5,0.4115303]
[1724233485314,0.42432755,2581.6,2581.5,0.4115303]
[1724233485869,0.42432755,2581.6,2581.4,0.916403]
[1724233486223,0.42432755,2581.5,2581.4,0.916403]
[1724233487514,0.42432755,2581.5,2581.3,0.7]
[1724233487681,0.42432755,2581.4,2581.3,0.7]
[1724233488264,0.42432755,2581.5,2581.3,0.7]
[1724233488474,4.1043,2581.6,2581.3,0.7]
[1724233488670,0.42470377,2581.5,2581.3,0.7]
[1724233491827,0.42470377,2581.5,2581.4,0.2147175]
[1724233492208,0.42470377,2581.5,2581.3,0.7]
[1724233492522,4.1043,2581.6,2581.3,0.7]
[1724233492759,0.42449048,2581.5,2581.3,0.7]
[1724233492972,0.42449048,2581.4,2581.3,0.7]
[1724233494076,0.42449048,2581.4,2581.0,0.7]
[1724233494257,2.73579048,2581.3,2581.0,0.7]
[1724233494438,2.11249048,2581.2,2581.0,0.7]
[1724233494774,0.42449048,2581.1,2581.0,0.7]
[1724233499664,0.42449048,2581.1,2580.7,8.40589]
[1724233499859,0.42449048,2581.0,2580.7,0.29589]
[1724233500063,3.0,2581.7,2580.4,0.7]
[1724233500064,2.90659048,2580.9,2580.4,0.7]
[1724233500322,0.42449048,2580.8,2580.4,0.7]
[1724233500531,2.4821,2580.9,2579.9,8.22263447]
[1724233500532,0.42449048,2580.7,2580.1,3.1077]
[1724233500685,5.8172,2581.4,2580.2,0.31077]
[1724233500686,2.4777,2580.6,2580.2,0.31077]
[1724233500883,2.4777,2580.6,2580.1,0.7]
[1724233500884,0.42426721,2580.5,2580.1,0.7]
[1724233501120,0.42426721,2580.4,2580.1,0.7]
[1724233501327,2.4777,2580.6,2580.1,0.7]
[1724233501637,0.42427832,2580.5,2580.1,0.7]
[1724233501793,4.1657,2580.6,2580.1,0.7]
[1724233502183,0.42423235,2580.5,2580.1,0.7]
[1724233502379,1.688,2581.0,2580.5,0.7]
[1724233502584,3.0,2581.3,2580.5,2.9965]
[1724233502585,0.42423732,2580.9,2580.5,2.9965]
[1724233502893,4.1184,2581.2,2580.8,0.7]
[1724233503208,0.4242725,2581.1,2580.8,0.7]
[1724233503415,0.42422406,2581.0,2580.8,0.7]
[1724233503607,4.1184,2581.2,2580.8,0.7]
[1724233503778,0.42414887,2581.1,2580.8,0.7]
[1724233503993,4.1184,2581.2,2580.8,0.7]
[1724233503994,2.11214887,2581.0,2580.8,0.7]
[1724233504206,1.688,2581.0,2580.8,0.7]
[1724233504413,0.42410497,2580.9,2580.8,0.7]
[1724233504997,0.42410497,2580.9,2580.8,0.90183295]
[1724233505837,2.98131547,2580.9,2580.8,0.20183295]
[1724233506201,2.4419,2580.8,2580.0,0.7]
[1724233506400,0.63531547,2580.9,2580.0,0.7]
[1724233506401,4.1299,2580.4,2580.0,0.7]
[1724233506621,2.4419,2580.4,2580.1,0.19470505]
[1724233507025,1.688,2580.3,2580.1,0.19470505]
[1724233508422,2.4419,2580.4,2580.1,0.19470505]
[1724233511241,2.4419,2580.4,2579.7,0.7]
[1724233511442,2.4419,2580.4,2580.2,0.19520896]
[1724233511668,2.4419,2580.4,2579.7,0.7]
[1724233511845,2.4419,2580.4,2580.3,0.19520896]
[1724233512273,3.0,2580.6,2580.0,0.7]
[1724233512590,5.4488,2580.7,2580.1,0.19522634]
[1724233512969,5.4488,2580.7,2580.0,0.7]
[1724233513283,5.4488,2580.7,2580.1,0.55]
[1724233514564,5.4488,2580.7,2580.0,0.7]
[1724233514767,5.4488,2580.7,2580.2,0.19522634]
[1724233514929,5.4488,2580.7,2580.0,0.7]
[1724233515375,5.4488,2580.7,2580.1,0.19522634]
[1724233515737,6.5754,2580.7,2580.0,0.7]
[1724233516431,6.5754,2580.7,2580.1,0.19580844]
[1724233516644,2.4775,2580.6,2580.1,0.19580844]
[1724233516940,2.4775,2580.6,2579.7,3.0279]
[1724233517100,2.4775,2580.6,2579.8,0.55]
[1724233517311,4.12513,2580.6,2579.9,0.19585189]
[1724233518331,2.4247,2580.5,2579.8,0.55]
[1724233518732,6.3126,2580.4,2579.9,0.19585189]
[1724233518939,2.2576,2580.2,2579.4,0.7]
[1724233519490,6.13327,2580.2,2579.5,0.19592142]
[1724233519696,1.0452058,2580.1,2579.5,0.19592142]
[1724233519830,2.4523,2580.0,2579.4,0.7]
[1724233520164,5.4523,2580.0,2579.1,0.7]
[1724233520376,2.4523,2580.0,2579.1,0.7]
[1724233520580,1.03733358,2579.9,2579.2,0.19619957]
[1724233521742,9.5073,2580.0,2579.2,0.19619957]
[1724233521992,5.4523,2580.0,2579.3,2.2951]
[1724233523809,5.4523,2580.0,2579.4,0.7]
[1724233525302,2.4282,2579.9,2579.1,0.7]
[1724233525503,6.4832,2579.7,2579.1,0.7]
[1724233525702,2.4282,2579.6,2579.2,0.19639084]
[1724233527629,2.4981,2579.5,2579.2,0.19639084]
[1724233527861,2.4981,2579.5,2579.1,0.7]
[1724233528015,3.45341,2579.5,2579.1,0.7]
[1724233529838,2.4981,2579.5,2579.1,0.7]
[1724233534188,2.4981,2579.5,2578.7,0.7]
[1724233534656,2.3305,2579.3,2578.8,0.25129676]
[1724233534859,2.96905,2579.3,2578.8,0.25129676]
[1724233535058,2.96905,2579.3,2578.7,0.7]
[1724233535271,2.96905,2579.3,2578.9,0.25129595]
[1724233535576,2.96905,2579.3,2579.0,0.25129515]
[1724233536075,2.96905,2579.3,2578.7,0.7]
[1724233536530,2.96905,2579.3,2578.8,0.25129676]
[1724233536716,2.96905,2579.3,2578.7,0.7]
[1724233536915,2.3305,2579.3,2578.8,0.25129676]
[1724233537143,2.3305,2579.3,2578.7,0.7]
[1724233537457,2.3305,2579.3,2578.9,0.25129595]
[1724233537774,2.3305,2579.3,2578.7,0.7]
[1724233538315,2.3305,2579.3,2578.8,0.25129676]
[1724233538553,2.93851828,2579.3,2578.7,0.7]
[1724233538776,0.60801828,2579.3,2578.9,0.25129595]
[1724233539058,0.60801828,2579.3,2579.0,0.7]
[1724233539215,5.8172,2579.7,2579.3,0.7]
[1724233540522,0.60793478,2579.8,2579.3,0.7]
[1724233540715,0.60793478,2579.8,2579.4,0.25129194]
[1724233542169,0.60793478,2579.8,2579.3,0.7]
[1724233542370,2.3599,2579.7,2579.5,0.25129113]
[1724233542581,2.3599,2579.7,2579.0,0.7]
[1724233542582,2.3599,2579.6,2579.0,0.7]
[1724233542724,2.3599,2579.6,2578.7,0.7]
[1724233543063,2.3468,2579.5,2578.7,0.7]
[1724233543918,2.3468,2579.5,2578.8,0.55]
[1724233544144,2.3468,2579.3,2578.8,0.55]
[1724233544452,2.3468,2579.3,2578.7,0.7]
[1724233551905,2.3468,2579.3,2578.8,0.25112286]
[1724233552624,2.3468,2579.3,2578.9,0.25112205]
[1724233552831,2.3468,2579.3,2578.7,0.7]
[1724233553134,0.42350503,2579.2,2578.8,0.55]
[1724233553298,2.3468,2579.3,2578.9,0.25112205]
[1724233553504,0.42348952,2579.2,2578.9,0.25112205]
[1724233553823,2.3468,2579.3,2578.9,0.25112205]
[1724233554228,0.42349089,2579.2,2578.9,0.25112205]
[1724233554417,2.3468,2579.3,2578.9,0.25112205]
[1724233555113,0.42349047,2579.2,2578.9,0.25112205]
[1724233555320,2.3468,2579.3,2578.9,0.25112205]
[1724233555902,2.3062,2579.5,2579.0,0.7]
[1724233556118,8.8172,2579.6,2579.0,1.0916822]
[1724233556430,0.42350538,2579.5,2579.1,0.80193801]
[1724233556616,2.3062,2579.7,2579.4,0.7]
[1724233556941,0.60803354,2580.1,2579.1,0.7]
[1724233556942,2.3491,2579.5,2579.1,0.7]
[1724233557169,0.70083833,2579.4,2579.1,0.7]
[1724233557298,2.3491,2579.5,2579.1,0.7]
[1724233557653,0.42359048,2579.4,2579.1,0.7]
[1724233557814,0.42357908,2579.3,2578.8,7.41]
[1724233558147,7.93151,2579.7,2578.8,7.41]
[1724233558148,2.84146392,2579.2,2578.8,7.41]
[1724233558450,2.4179,2579.2,2578.8,7.41]
[1724233558796,0.42354349,2579.1,2578.8,7.41]
[1724233558991,0.42354349,2579.0,2578.8,7.41]
[1724233559233,2.4179,2579.2,2578.7,0.7]
[1724233559396,0.42357434,2579.1,2578.7,0.7]
[1724233559597,2.4179,2579.2,2578.7,0.7]
[1724233559835,0.42356882,2579.1,2578.7,0.7]
[1724233560013,2.4179,2579.2,2578.7,1.00715]
[1724233560211,0.42355901,2579.1,2578.7,1.00715]
[1724233560498,0.42355901,2579.0,2578.7,1.00715]
[1724233560708,2.4179,2579.2,2578.7,1.00715]
[1724233560917,0.4235952,2579.1,2578.7,1.00715]
[1724233561118,2.4179,2579.2,2578.7,1.00715]
[1724233561350,0.42357476,2579.1,2578.7,1.00715]
[1724233562209,2.4179,2579.2,2578.7,0.7]
[1724233562414,0.42354841,2579.1,2578.7,0.7]
[1724233562651,0.42354841,2579.0,2578.7,0.7]
[1724233562861,2.4179,2579.2,2578.7,0.7]
[1724233563016,0.42356848,2579.1,2578.7,0.7]
[1724233563209,0.42356848,2579.0,2578.7,0.7]
[1724233563557,0.42356848,2578.9,2578.7,0.7]
[1724233563715,5.8172,2579.6,2579.0,0.7]
[1724233563917,0.42355663,2579.5,2579.1,0.55]
[1724233564140,0.42355663,2579.4,2579.1,0.55]
[1724233564370,0.42355663,2579.3,2579.2,0.25191981]
[1724233565218,0.42355663,2579.3,2579.0,0.7]
[1724233565529,0.42355663,2579.2,2579.0,0.7]
[1724233565738,2.3045,2579.6,2579.0,0.7]
[1724233565739,0.42361123,2579.1,2579.0,0.7]
[1724233565923,0.42361123,2579.1,2579.0,1.01264]
[1724233566718,0.42361123,2579.1,2579.0,1.26446573]
[1724233567561,2.3613,2579.9,2579.0,1.81446573]
[1724233567761,0.42361245,2579.8,2579.1,2.8628]
[1724233567985,0.42361245,2579.7,2579.1,2.8628]
[1724233568191,2.3613,2579.9,2579.1,2.8628]
[1724233568192,0.42361245,2579.6,2579.2,0.25182412]
[1724233568351,0.42361245,2579.5,2579.2,0.25182412]
[1724233568553,0.42361245,2579.4,2579.1,0.55]
[1724233568873,2.3023,2579.6,2579.2,0.25182412]
[1724233569082,0.42360739,2579.5,2579.2,0.25182412]
[1724233569283,2.3023,2579.6,2579.2,0.25182412]
[1724233569599,1.15529478,2579.5,2579.3,0.25182332]
[1724233569763,1.15529478,2579.4,2579.3,0.25182332]
[1724233569963,1.15529478,2579.4,2579.1,0.55]
[1724233570297,0.42361565,2579.3,2579.1,0.90628]
[1724233570466,0.42361565,2579.2,2579.1,0.55]
[1724233572258,0.42361565,2579.2,2579.1,2.9115]
[1724233572772,5.2613,2579.8,2579.4,0.7]
[1724233573098,1.15523892,2579.7,2579.4,0.7]
[1724233573300,1.15523892,2579.6,2579.5,0.55]
[1724233575764,0.4235876,2579.6,2579.5,0.55]
[1724233575946,2.279,2579.6,2579.1,0.7]
[1724233576262,1.15514131,2579.5,2579.2,0.55]
[1724233576417,2.279,2579.6,2579.2,0.55]
[1724233576418,0.4235876,2579.4,2579.2,0.55]
[1724233576616,2.279,2579.6,2579.2,0.55]
[1724233576845,1.15499888,2579.5,2579.2,0.55]
[1724233577643,0.42349878,2579.4,2579.2,0.55]
[1724233577859,0.42349878,2579.3,2579.2,0.55]
[1724233578154,0.42349878,2579.5,2579.2,0.55]
[1724233578361,0.42349878,2579.4,2579.2,0.55]
[1724233578667,2.279,2579.6,2579.2,0.55]
[1724233578668,0.42349878,2579.3,2579.2,0.55]
[1724233579864,2.3572,2579.9,2579.5,0.7]
[1724233580035,1.15490146,2579.8,2579.5,0.7]
[1724233580240,1.15490146,2579.7,2579.6,2.356]
[1724233580477,0.60803354,2580.1,2579.8,0.7]
[1724233580696,1.15500013,2580.0,2579.8,0.7]
[1724233580983,0.60803354,2580.1,2579.9,0.24843992]
[1724233581437,0.42344908,2580.0,2579.9,0.24843992]
[1724233581974,1.15484913,2580.0,2579.9,0.24843992]
[1724233582172,3.56034913,2580.0,2579.5,0.7]
[1724233582377,1.15484913,2579.9,2579.6,0.5623232]
[1724233582578,0.42344908,2579.8,2579.6,0.5623232]
[1724233582754,0.42344908,2579.7,2579.6,0.5623232]
[1724233582954,0.42344908,2579.9,2579.6,0.5623232]
[1724233584590,2.4055,2580.0,2579.6,0.5623232]
[1724233584749,0.42353821,2579.9,2579.6,0.5623232]
[1724233585888,1.15511675,2579.9,2579.6,0.5623232]
[1724233586079,2.4055,2580.0,2579.6,0.2483032]
[1724233586080,0.42353821,2579.8,2579.6,0.2483032]
[1724233586287,0.42353821,2579.7,2579.6,0.2483032]
[1724233586489,1.15510915,2579.9,2579.6,0.2483032]
[1724233586695,0.42353821,2579.8,2579.6,0.2483032]
[1724233587019,0.42353821,2579.7,2579.6,0.2483032]
[1724233587220,0.42353821,2579.9,2579.6,0.2483032]
[1724233588268,0.42353821,2579.9,2579.6,0.2292232]
[1724233588473,0.42353821,2579.9,2579.8,0.7]
[1724233588990,0.42353821,2579.9,2579.8,0.94770037]
[1724233589191,0.60803354,2580.1,2579.8,0.94770037]
[1724233589502,0.42355408,2580.0,2579.8,0.94770037]
[1724233589711,0.42355408,2579.9,2579.8,0.94770037]
[1724233590590,0.42353962,2579.9,2579.8,0.94770037]
[1724233591769,2.69153962,2579.9,2579.8,0.94770037]
[1724233592707,2.69152833,2579.9,2579.8,0.94770037]
[1724233594373,0.42352833,2579.9,2579.8,0.94770037]
[1724233596782,0.42352833,2579.9,2579.8,1.49770037]
[1724233597134,0.60803354,2580.1,2579.8,1.49770037]
[1724233597312,0.42352877,2580.0,2579.8,1.49770037]
[1724233597474,0.60803354,2580.1,2579.8,1.49770037]
[1724233597676,0.4235242,2580.0,2579.8,1.49770037]
[1724233598055,0.60803354,2580.1,2579.8,1.49770037]
[1724233598330,0.42351919,2580.0,2579.8,1.49770037]
[1724233598516,0.60803354,2580.1,2579.8,1.49770037]
[1724233598692,0.42353661,2580.0,2579.8,1.49770037]
[1724233598869,0.60803354,2580.1,2579.8,1.49770037]
[1724233599225,0.42353205,2580.0,2579.8,1.49770037]
[1724233599415,0.60803354,2580.1,2579.8,1.49770037]
[1724233599574,0.42353224,2580.0,2579.8,1.49770037]
[1724233599770,0.60803354,2580.1,2579.8,1.49770037]
[1724233600025,2.2588,2580.3,2579.8,1.49770037]
[1724233600026,0.42352832,2580.0,2579.8,1.49770037]
[1724233600527,0.42352655,2579.9,2579.8,1.49770037]
[1724233601031,2.2588,2580.3,2579.8,1.25]
[1724233601235,1.15523272,2580.2,2579.8,1.25]
[1724233601532,0.42358533,2580.1,2579.9,0.24730829]
[1724233601744,0.42358533,2580.0,2579.9,0.24730829]
[1724233602277,1.15571685,2580.2,2579.9,0.24730829]
[1724233602478,1.15571409,2580.1,2579.9,0.24730829]
[1724233602791,0.42358533,2580.0,2579.9,0.24730829]
[1724233602990,1.15583494,2580.2,2579.9,0.24730829]
[1724233603235,0.42358533,2580.1,2579.9,0.24730829]
[1724233603382,0.42358533,2580.0,2579.9,0.24730829]
[1724233603725,0.42358533,2580.2,2579.9,0.24730829]
[1724233604235,2.2588,2580.3,2579.9,0.24730829]
[1724233604418,0.42399191,2580.2,2579.9,0.24730829]
[1724233604614,0.42397936,2580.1,2579.9,0.24730829]
[1724233604771,0.42397936,2580.0,2579.9,0.24730829]
[1724233604970,0.42397936,2580.0,2579.9,0.64299912]
[1724233607093,0.42397936,2580.0,2579.9,0.24730829]
[1724233608177,2.3389,2580.5,2579.9,0.24730829]
[1724233608452,1.15706802,2580.4,2580.1,0.7]
[1724233608663,1.15706802,2580.4,2579.9,2.68670829]
[1724233608664,5.8172,2580.7,2580.4,0.7]
[1724233608863,2.2538,2580.9,2580.4,0.7]
[1724233608864,0.42444855,2580.6,2580.4,0.7]
[1724233609133,2.2538,2580.9,2580.4,1.03864103]
[1724233609134,0.42444855,2580.5,2580.4,1.03864103]
[1724233609337,0.42444855,2580.5,2580.4,1.58864103]
[1724233611240,3.05537964,2581.1,2580.7,0.7]
[1724233611434,0.42451158,2581.0,2580.8,0.55]
[1724233611638,3.05537964,2581.1,2580.8,0.55]
[1724233611639,0.42451158,2580.9,2580.8,0.55]
[1724233612097,2.4923,2581.3,2580.8,1.16620481]
[1724233612313,0.42452898,2581.2,2581.1,2.4405]
[1724233612608,0.60753512,2581.8,2581.4,0.7]
[1724233612738,0.42458202,2581.7,2581.4,0.7]
[1724233612938,0.42458202,2581.6,2581.5,0.79638278]
[1724233613137,0.42458202,2581.6,2581.5,0.24638278]
[1724233613368,2.71392,2581.9,2581.5,0.24638278]
[1724233613369,0.42458202,2581.8,2581.5,0.24638278]
[1724233613565,0.73843222,2581.8,2581.5,0.24638278]
[1724233613765,0.42458202,2581.7,2581.5,0.24638278]
[1724233613966,0.42458202,2581.7,2581.4,0.7]
[1724233614242,0.42458202,2581.7,2581.5,0.24608741]
[1724233615643,3.3138502,2581.8,2581.5,0.24608741]
[1724233615957,1.02746918,2581.7,2581.5,0.24608741]
[1724233616178,0.42469376,2581.6,2581.5,0.24608741]
[1724233616390,0.42469376,2581.6,2581.4,0.7]
[1724233616602,0.60277702,2581.7,2581.5,0.24458444]
[1724233616806,0.42471876,2581.6,2581.5,0.24458444]
[1724233616942,0.42471876,2581.6,2581.4,0.7]
[1724233617142,3.3138502,2581.8,2581.5,0.24458444]
[1724233617458,3.3138502,2581.8,2581.4,0.7]
[1724233617669,0.42472201,2581.7,2581.4,0.7]
[1724233617860,3.0,2581.8,2581.4,0.7]
[1724233618064,0.4247213,2581.7,2581.4,0.7]
[1724233618262,3.0,2581.8,2581.4,0.7]
[1724233618468,0.42471872,2581.7,2581.4,0.7]
[1724233618668,3.0,2581.8,2581.4,0.7]
[1724233618836,0.42471547,2581.7,2581.4,0.7]
[1724233619039,3.0,2581.8,2581.4,0.7]
[1724233619241,2.4672,2581.9,2581.4,0.7]
[1724233619440,0.42469207,2581.8,2581.4,0.7]
[1724233619671,3.0,2581.8,2581.4,0.7]
[1724233619865,2.4672,2581.9,2581.4,0.7]
[1724233620067,4.47969689,2581.8,2581.1,3.1405]
[1724233620241,4.055,2581.8,2581.5,0.24458444]
[1724233620438,4.055,2581.8,2581.2,0.55]
[1724233620641,0.42469997,2581.7,2581.6,0.24467048]
[1724233620851,0.42469997,2581.7,2581.2,0.55]
[1724233620852,0.95222,2581.9,2581.4,0.7]
[1724233621197,3.0,2582.2,2581.6,0.24468785]
[1724233621399,6.22057,2582.4,2581.5,0.24468865]
[1724233621400,0.42473333,2582.1,2581.5,0.24468865]
[1724233621696,3.0,2582.3,2581.4,0.7]
[1724233621697,3.0,2582.3,2581.6,0.24467048]
[1724233621991,7.77790358,2582.2,2581.4,0.7]
[1724233622196,3.0,2582.1,2581.4,0.7]
[1724233622494,3.0,2582.1,2581.5,0.24467128]
[1724233623297,2.3941,2582.0,2581.5,0.24467128]
[1724233623508,2.3941,2581.8,2581.5,0.24467128]
[1724233623704,2.7069164,2581.7,2580.9,7.41]
[1724233623998,2.7069164,2581.7,2581.6,0.24450548]
[1724233623999,2.2821,2581.7,2581.6,0.24450548]
[1724233624297,3.0,2581.6,2580.8,2.9595]
[1724233624502,3.52821,2581.6,2580.8,2.9595]
[1724233625255,3.52821,2581.6,2580.9,0.55]
[1724233627399,4.055,2581.5,2580.9,0.55]
[1724233627586,2.4408,2581.4,2580.9,0.55]
[1724233627791,2.4408,2581.4,2580.5,8.11]
[1724233627996,2.4408,2581.2,2581.0,0.24509215]
[1724233628199,2.4408,2581.2,2580.5,0.7]
[1724233628565,2.4408,2581.2,2580.6,0.24503456]
[1724233629130,3.0,2581.4,2580.8,0.7]
[1724233632611,4.576321,2581.4,2580.8,0.7]
[1724233634093,0.42534031,2581.3,2580.9,0.24503215]
[1724233634297,2.3538,2581.2,2580.9,0.24503215]
[1724233635898,5.3306,2581.5,2580.9,0.24503215]
[1724233636157,0.42542032,2581.4,2580.9,0.24503215]
[1724233636443,5.3306,2581.5,2580.9,0.24503215]
[1724233636602,0.42541632,2581.4,2580.9,0.24503215]
[1724233636802,5.85008335,2581.5,2580.9,0.24503215]
[1724233637048,0.42540692,2581.4,2580.9,0.24503215]
[1724233637215,5.85008335,2581.5,2580.9,0.24503215]
[1724233637415,0.42542572,2581.4,2580.9,0.24503215]
[1724233637609,5.3306,2581.5,2580.9,0.24503215]
[1724233637818,0.42541877,2581.4,2580.9,0.58151537]
[1724233638040,3.0,2581.5,2580.9,0.58151537]
[1724233638366,3.0,2581.5,2580.9,0.33648322]
[1724233638534,0.42540961,2581.4,2580.9,0.33648322]
[1724233638698,3.0,2581.5,2580.9,0.33648322]
[1724233638902,0.42542382,2581.4,2580.9,0.33648322]
[1724233639102,3.0,2581.5,2580.9,0.33648322]
[1724233639338,0.42542087,2581.4,2580.9,0.33648322]
[1724233639651,3.0,2581.5,2580.9,0.33648322]
[1724233639840,0.42542042,2581.4,2580.9,0.33648322]
[1724233640055,0.4254315,2581.3,2580.8,3.1198]
[1724233640257,2.8999315,2581.2,2580.6,2.3068]